Cogmind - Beta 15 @@@ ROGUE MODE // 2025.08.10 @ 15:45:17 Player: Zoe Result: Destroyed by G-34 Mercenary with Small Laser Performance ------------- Evolutions (0) 0 Regions Visited (4) 800 Robots Destroyed (23) 115 Value Destroyed (501) 501 Prototype IDs (25) 500 Alien Tech Used (0) 0 Bonus (335) 335 TOTAL SCORE: 2251 Bonus ------- Follower Combat Kills 35 Aligned with FarCom 300 Cogmind --------- Core Integrity 0/250 Matter 300/300 Energy 52/100 System Corruption 0% Temperature Cool (6) Movement Treading (160) Location -9/Mines Parts ------- > --- POWER (1) -------- (None) > --- PROPULSION (2) --- Improved Treads Improved Treads > --- UTILITY (2) ------ Large Storage Unit Light Armor Plating > --- WEAPON (2) ------- Mining Claw > --- INVENTORY (15) --- Ion Engine Light Ion Engine Improved Treads Improved Treads Improved Treads Improved Treads Flight Unit Improved Terrain Scanner 0b10 Alert Chip Targeting Computer Rocket Launcher Peak State ------------ > --- POWER ------------ Light Angular Momentum Engine > --- PROPULSION ------- Improved Treads Improved Treads > --- UTILITY ---------- Large Storage Unit Seismic Detector > --- WEAPON ----------- Medium Laser Mining Claw > --- INVENTORY -------- Ion Engine Ion Engine Ion Engine Improved Treads Improved Treads Improved Treads Improved Treads Improved Treads Improved Terrain Scanner 0b10 Alert Chip Targeting Computer Light Armor Plating Rocket Launcher [Rating: 15] Favorites ----------- Power Ion Engine Engine Ion Engine Propulsion Improved Treads Treads Improved Treads Utility Large Storage Unit Device Seismic Detector Storage Large Storage Unit Protection Light Armor Plating Weapon Light Assault Rifle Energy Gun Medium Laser Ballistic Gun Light Assault Rifle Slashing Weapon Mining Claw Build | -11 -10 -10 -10 -9 ------- Run | Yrd Mat Min Exi Min Slots Evolved . | . . . . . Power . | . . . . . Propulsion . | . . . . . Utility . | . . . . . Weapon . | . . . . . Parts Attached 21 | 7 3 1 . 10 Power 4 | 1 . 1 . 2 Engine 4 | 1 . 1 . 2 Core . | . . . . . Reactor . | . . . . . Propulsion 8 | 2 2 . . 4 Treads 8 | 2 2 . . 4 Leg . | . . . . . Wheel . | . . . . . Hover . | . . . . . Flight . | . . . . . Utility 4 | 2 1 . . 1 Device 1 | 1 . . . . Storage 2 | 1 1 . . . Processor . | . . . . . Hackware . | . . . . . Protection 1 | . . . . 1 Artifact . | . . . . . Weapon 5 | 2 . . . 3 Energy Gun 1 | . . . . 1 Energy Cannon . | . . . . . Ballistic Gun 3 | 2 . . . 1 Ballistic Cannon . | . . . . . Launcher . | . . . . . Special Weapon . | . . . . . Impact Weapon . | . . . . . Slashing Weapon 1 | . . . . 1 Piercing Weapon . | . . . . . Special Melee Weapon . | . . . . . Unidentified Prototypes . | . . . . . Parts Lost 6 | . . . . 6 Power 2 | . . . . 2 Propulsion . | . . . . . Utility 1 | . . . . 1 Weapon 3 | . . . . 3 Highest Loss Streak 3 | . . . . 3 To Critical Strikes . | . . . . . Average Backups 11 | 5 9 13 13 13 Power 1 | . 1 1 1 2 Propulsion 5 | 1 3 6 6 5 Utility 3 | 1 2 3 3 4 Weapon 2 | 1 2 3 3 1 Tool/Special . | . . . . . Unused Backups 13 | . 3 1 . 9 Power 2 | . . . . 2 Propulsion 5 | . 2 . . 3 Utility 3 | . . . . 3 Weapon 3 | . 1 1 . 1 Tool/Special . | . . . . . Average Slot Usage (%) 99 | . 100 100 100 97 Engine 13 | . 14 14 14 13 Treads 27 | . 28 28 28 27 Device 13 | . 14 14 14 13 Storage 14 | . 14 14 14 14 Ballistic Gun 23 | . 28 28 28 12 Slashing Weapon 3 | . . . . 11 Peak Build Rating 15 | 7 11 11 11 15 Average Rating 10 | 5 8 11 11 11 On Entrance 8 | . 7 11 11 11 Naked Turns . | . . . . . Heaviest Build 34 | 13 28 28 28 34 Greatest Support 46 | 40 46 46 46 46 Greatest Overweight (x) 1 | . 1 . . 1 Average Overweight (x) . | . . . . . Largest Inventory Capacity 15 | 8 15 15 15 15 Average Capacity 14 | 7 14 15 15 15 Most Carried 15 | 7 15 14 14 15 Average Carried 11 | 5 9 13 13 13 Final Capacity 15 | 8 15 15 15 15 Final Carried 14 | 6 14 13 14 11 Class Distribution -------------------- 100% | Mutant Dominant Class ---------------- Mutant | -10/Materials Mutant | -10/Mines Mutant | -10/Exiles Mutant | -9/Mines Resources | -11 -10 -10 -10 -9 ----------- Run | Yrd Mat Min Exi Min Matter Collected 512 | 286 76 28 . 122 Remotely . | . . . . . Salvage Created 743 | 208 194 51 . 290 Parts 52 | 17 12 4 . 19 Haulers Intercepted . | . . . . . Recyclers Shooed . | . . . . . Parts Field Recycled . | . . . . . Retrieved Matter . | . . . . . Parts Self-Destructed . | . . . . . Prevented . | . . . . . Kills | -11 -10 -10 -10 -9 ------- Run | Yrd Mat Min Exi Min Combat Hostiles Destroyed 17 | . 5 3 . 9 Melee 7 | . . . . 7 Guns 10 | . 5 3 . 2 Classes Destroyed 5 | 2 1 1 . 1 Tunneler 5 | 5 . . . . Recycler 1 | 1 . . . . Swarmer 6 | . . 3 . 3 Grunt 9 | . 5 . . 4 Duelist 2 | . . . . 2 Best Kill Streak 5 | 5 3 3 . 3 Combat Bots Only 3 | . 3 3 . 3 Max Kills in Single Turn 1 | 1 1 1 . 1 Gunslinging . | . . . . . Exploded . | . . . . . Melee 1 | . . . . 1 Uniques/NPCs Destroyed . | . . . . . Combat | -11 -10 -10 -10 -9 -------- Run | Yrd Mat Min Exi Min Hostile Shots Fired 136 | . 24 13 . 99 Missed 37 | . 8 6 . 23 Hits 99 | . 16 7 . 76 Melee 14 | . . . . 14 Projectile 85 | . 16 7 . 62 Critical Strikes 3 | . . . . 3 Damage Taken 1307 | . 177 52 . 1078 Core 255 | . 31 13 . 211 Absorbed by Shields . | . . . . . Core Remaining (%) 100 | 100 . . . . Volleys Fired 56 | 13 18 9 . 16 Largest 2 | 2 2 2 . 2 Hottest 40 | 40 40 40 . 40 Shots Fired 112 | 26 36 18 . 32 Gun 112 | 26 36 18 . 32 Cannon . | . . . . . Launcher . | . . . . . Special . | . . . . . Kinetic 112 | 26 36 18 . 32 Thermal . | . . . . . Explosive . | . . . . . Electromagnetic . | . . . . . Robot Hit Streak 11 | 7 11 6 . 8 Robot Miss Streak 3 | 1 2 1 . 3 Penetration Max . | . . . . . Secondary Targets 1 | . 1 . . . Max Gunslinging Chain 1 | . 1 . . . Shots Hit Robots 99 | 17 29 12 . 41 Core Hits 43 | 10 12 5 . 16 Critical Kills 1 | 1 . . . . Critical Parts Destroyed . | . . . . . Critical Strikes 1 | 1 . . . . Destroy 1 | 1 . . . . Melee Attacks 24 | . . . . 24 Impact . | . . . . . Slashing 24 | . . . . 24 Piercing . | . . . . . Sneak Attacks 1 | . . . . 1 Combat Hostiles . | . . . . . Follow-up Attacks . | . . . . . Damage Inflicted 1069 | 131 223 99 . 616 Guns 636 | 131 223 99 . 183 Cannons . | . . . . . Explosions . | . . . . . Melee 433 | . . . . 433 Ramming . | . . . . . Kinetic 636 | 131 223 99 . 183 Thermal . | . . . . . Explosive . | . . . . . Electromagnetic . | . . . . . Impact . | . . . . . Slashing 433 | . . . . 433 Piercing . | . . . . . Highest Corruption . | . . . . . Average Corruption . | . . . . . Corruption Purged . | . . . . . Corruption Blocked . | . . . . . Overload Shots . | . . . . . Overflow Damage 28 | . . . . 28 Projectiles . | . . . . . Explosions . | . . . . . Melee 28 | . . . . 28 Knockbacks . | . . . . . Impact . | . . . . . Kinetic . | . . . . . Secondary . | . . . . . Self-Inflicted Damage . | . . . . . Shots . | . . . . . Rammed . | . . . . . Targets Rammed . | . . . . . Kicked . | . . . . . Crushed . | . . . . . Highest Temperature 15 | . 12 . . 15 Average Temperature 7 | . 7 . . 9 Received Heat Transfer 315 | . 96 . . 219 Siege Activations . | . . . . . Martial Activations . | . . . . . Shielding Activations . | . . . . . Robots Disrupted . | . . . . . Combat Hostiles . | . . . . . Robots Corrupted . | . . . . . Combat Hostiles . | . . . . . Parts Fried . | . . . . . Impact Corruptions . | . . . . . Robots Melted . | . . . . . Combat Hostiles . | . . . . . Parts Melted . | . . . . . Heat Transferred . | . . . . . Parts Sabotaged . | . . . . . Parts Stolen . | . . . . . Parts Stripped . | . . . . . Power Chain Reactions . | . . . . . Alert | -11 -10 -10 -10 -9 ------- Run | Yrd Mat Min Exi Min Maximum Alert Level . | . . . . . Low Security (%) 100 | 100 100 100 . 100 Level 1 . | . . . . . Level 2 . | . . . . . Level 3 . | . . . . . Level 4 . | . . . . . Level 5 . | . . . . . High Security . | . . . . . Max Security . | . . . . . Peak Influence 80 | 10 80 60 . 64 Initial 12 | . 3 12 . . Average 14 | 2 23 7 . 17 Influence Increases 492 | 30 145 70 . 247 Destroy 0b10 Robot/C 360 | . 100 60 . 200 Destroy 0b10 Robot/NC 30 | 30 . . . . Destroy Leader 70 | . 20 10 . 40 Allied During Kill 7 | . . . . 7 Successful Hack 25 | . 25 . . . Influence Decreases 462 | 25 118 102 . 217 Entered New Map 22 | . 2 20 . . Time Decay 376 | 25 116 82 . 153 Lost Part 24 | . . . . 24 Lost Ally 40 | . . . . 40 Squads Dispatched 6 | . 5 1 . . Investigation 4 | . 4 . . . Extermination . | . . . . . Reinforcement 1 | . 1 . . . Assault 1 | . . 1 . . Garrison . | . . . . . Intercept . | . . . . . Searches Triggered . | . . . . . Construction Impeded . | . . . . . Haulers Reinforced . | . . . . . Active Scanning Responses . | . . . . . Cargo Convoy Interrupts . | . . . . . Stealth | -11 -10 -10 -10 -9 --------- Run | Yrd Mat Min Exi Min Distress Signals 1 | . 1 . . . Communications Jammed . | . . . . . Distress Signals . | . . . . . Times Spotted 25 | . 9 3 . 13 Peak Tracking Total 4 | . 2 3 . 4 Tactical Retreats . | . . . . . Traps | -11 -10 -10 -10 -9 ------- Run | Yrd Mat Min Exi Min Traps Triggered 1 | . 1 . . . Indirectly . | . . . . . Trap Hack Attempts . | . . . . . Triggered . | . . . . . Disarmed . | . . . . . Reprogrammed . | . . . . . Reused . | . . . . . Traps Extracted . | . . . . . Installed . | . . . . . Triggered . | . . . . . Machines | -11 -10 -10 -10 -9 ---------- Run | Yrd Mat Min Exi Min Machines Disabled . | . . . . . Max in Single Turn . | . . . . . Machines Repaired . | . . . . . Machines Dismantled . | . . . . . Machines Sabotaged . | . . . . . Overloaded Fab Kills . | . . . . . Hacking | -11 -10 -10 -10 -9 --------- Run | Yrd Mat Min Exi Min Machines Accessed 4 | . 3 . 1 . Terminals 3 | . 3 . . . Fabricators . | . . . . . Repair Stations . | . . . . . Recycling Units . | . . . . . Scanalyzers . | . . . . . Garrison Access . | . . . . . Total Hacks 14 | . 13 . 1 . Successful 11 | . 10 . 1 . Failed 3 | . 3 . . . Catastrophic 1 | . 1 . . . Database Lockouts . | . . . . . Manual 13 | . 12 . 1 . Terminals 13 | . 13 . . . Fabricators . | . . . . . Repair Stations . | . . . . . Recycling Units . | . . . . . Scanalyzers . | . . . . . Garrison Access . | . . . . . Terminal Hacks 5 | . 4 . 1 . Robot Analysis 3 | . 3 . . . Prototype ID Bank 1 | . 1 . . . Proto ID Catalog 1 | . . . 1 . Fabricator Hacks . | . . . . . Repair Station Hacks . | . . . . . Recycling Unit Hacks . | . . . . . Scanalyzer . | . . . . . Garrison Access Hacks . | . . . . . Unauthorized Hacks 6 | . 6 . . . Terminals 6 | . 6 . . . Track 2 | . 2 . . . Assimilate 1 | . 1 . . . Botnet 3 | . 3 . . . Fabricators . | . . . . . Repair Stations . | . . . . . Recycling Units . | . . . . . Scanalyzers . | . . . . . Garrison Access . | . . . . . Data Cores Recovered . | . . . . . Used . | . . . . . Hacking Detections 3 | . 3 . . . Full Trace Events 3 | . 3 . . . Feedback Events . | . . . . . Feedback Blocked . | . . . . . Robot Schematics Acquired . | . . . . . Robots Built . | . . . . . Authchips . | . . . . . Time . | . . . . . Total Robot Build Rating . | . . . . . Part Schematics Acquired . | . . . . . Parts Built . | . . . . . Authchips . | . . . . . Time . | . . . . . Total Part Build Rating . | . . . . . Parts Repaired . | . . . . . Time . | . . . . . Parts Recycled . | . . . . . Recycled Matter . | . . . . . Retrieved Matter . | . . . . . Retrieved Components . | . . . . . Parts Scanalyzed . | . . . . . Part Schematics Acquired . | . . . . . Parts Damaged . | . . . . . Bothacking | -11 -10 -10 -10 -9 ------------ Run | Yrd Mat Min Exi Min Used RIF Installer . | . . . . . Robots Hacked . | . . . . . Non-combat . | . . . . . Combat . | . . . . . Robot Hacks Applied . | . . . . . Relay Couplers Released . | . . . . . Fabnet Peak Effective % . | . . . . . Robots Rewired . | . . . . . Allies Hacked . | . . . . . Hacks Repelled . | . . . . . Allies | -11 -10 -10 -10 -9 -------- Run | Yrd Mat Min Exi Min Total Allies 4 | . 1 1 . 2 Largest Group 2 | . 1 1 1 2 Highest-Rated Group 57 | . 10 31 31 57 Highest-Rated Ally 31 | . 10 31 31 31 Total Orders . | . . . . . Ally Attacks 15 | . . . . 15 Total Damage 168 | . . . . 168 Kills 1 | . . . . 1 Allies Corrupted . | . . . . . Allies Melted . | . . . . . Intel | -11 -10 -10 -10 -9 ------- Run | Yrd Mat Min Exi Min Active Infowar (turns) 2016 | . 446 624 353 593 Seismic 2016 | . 446 624 353 593 Robot Analysis Total 3 | . 3 . . . Derelict Logs Recovered 3 | . . 1 . 2 Drone Launches . | . . . . . Drone Recoveries . | . . . . . Exploration | -11 -10 -10 -10 -9 ------------- Run | Yrd Mat Min Exi Min Turns Passed 2173 | 132 446 624 353 618 Spaces Moved 1090 | 58 145 374 221 292 Core 12 | 12 . . . . Treads 1078 | 46 145 374 221 292 Legs . | . . . . . Wheels . | . . . . . Hover . | . . . . . Flight . | . . . . . Fastest Speed 50 | 50 160 160 160 160 Average Speed 158 | 137 160 160 160 160 Slowest Speed 240 | 160 240 160 160 240 Overloaded Moves . | . . . . . Propulsion Burnouts . | . . . . . Robots Hopped . | . . . . . Potential Cave-ins . | . . . . . Cave-ins Triggered . | . . . . . Exploration Rate (%) 45 | 4 28 75 65 56 Regions Visited 4 Branch Regions 3 Pre-discovered Areas . | . . . . . Known Exits Taken . | . . . . . Unknown Exits Taken 4 | 1 1 1 1 . Scrap Searched 2 | . . 1 . 1 Spaces Dug . | . . . . . Terrain Destroyed . | . . . . . Melee . | . . . . . Projectile . | . . . . . AOE . | . . . . . Terrain Rammed . | . . . . . Walls Destroyed . | . . . . . Machines Disabled . | . . . . . Actions | -11 -10 -10 -10 -9 --------- Run | Yrd Mat Min Exi Min Total 1396 | 89 332 386 221 368 Wait 170 | . 149 . . 21 Move 1086 | 57 144 373 220 292 Hop . | . . . . . Pick Up 29 | 12 12 1 1 3 Fast Attach 1 | 1 . . . . Attach 13 | 6 . . . 7 Detach . | . . . . . Swap 7 | . 3 1 . 3 Drop 10 | . 6 2 . 2 Fire 56 | 13 18 9 . 16 Melee 24 | . . . . 24 Ram . | . . . . . Kick . | . . . . . Crush . | . . . . . Escape Stasis . | . . . . . Rewire . | . . . . . Trap . | . . . . . Miscellaneous . | . . . . . Route ------- -11/Scrapyard -10/Materials -10/Mines (discovered 2 exits: [*Mat] / *Exi) -10/Exiles -9/Mines History --------- Turn | Location | Event 18 | -11/Scrapyard | Discovered new exit (range 15) 133 | -11/Scrapyard | Entered Materials 305 | -10/Materials | Build established: Mutant 560 | -10/Materials | Discovered new exit (range 8) 579 | -10/Materials | Entered Mines 801 | -10/Mines | Received a Rocket Launcher from a helpful Derelict 851 | -10/Mines | Discovered new exit (range 7) 1083 | -10/Mines | Learned Materials interactive machine intel 1087 | -10/Mines | Assembled infested the area 1139 | -10/Mines | Met 8R-AWN 1172 | -10/Mines | Met a Derelict testing a Signal Generator 1197 | -10/Mines | Discovered new exit (range 5) 1203 | -10/Mines | Entered Exiles 1203 | -10/Exiles | Accompanied by 1 ally 1243 | -10/Exiles | Welcomed by 8R-AWN 1271 | -10/Exiles | Met EX-HEX 1315 | -10/Exiles | Met EX-BIN 1335 | -10/Exiles | Aligned with FarCom system 1336 | -10/Exiles | Given EX-Vault access code 1378 | -10/Exiles | Opened EX-Vault 1387 | -10/Exiles | Found 0b10 Alert Chip 1420 | -10/Exiles | Warned to stay clear of 0b10 Research branches 1465 | -10/Exiles | Met EX-DEC 1542 | -10/Exiles | Discovered new exit (range 11) 1556 | -10/Exiles | Left Exiles lab with 0b10 Alert Chip 1556 | -10/Exiles | Entered Mines 1556 | -9/Mines | Accompanied by 1 ally 1645 | -9/Mines | Core integrity fell below 50% 1852 | -9/Mines | Learned Materials trap positions 2015 | -9/Mines | Learned Materials stockpile data 2155 | -9/Mines | Core integrity fell below 20% 2174 | -9/Mines | Destroyed by G-34 Mercenary with Small Laser Last Messages --------------- 01852_ Acquired derelict log, extracted data. Data stored: Materials trap records. 01970_ Acquired 10 matter. 01992_ K-01 Serf collects debris. 01997_ Searching scrap... 01997_ Found Lgt. EM Pulse Cannon. 01997_ Found Shotgun. 01997_ Found Seismic Detector. 01997_ Found 42 Matter. 02015_ Acquired derelict log, extracted data. Data stored: Materials stockpile data. 02126_ RK-CC5(z) destroyed. 02140_ Ion Engine destroyed. 02149_ Seismic Detector destroyed. 02150_ Sneak attack on K-01 Serf. 02150_ Destroyed Wheel. 02152_ Imp. Treads severed. 02162_ Lgt. Assault Rifle destroyed. 02165_ L-31 Rogue destroyed. 02171_ Acquired 30 matter. Map ----- +----------------------------------------------------+ | | | | | | | | | | | | | | | | | | | | | | | | | | | | | | | | | | | ?????????????????????????????????????????????????? | | ?????????????????????????????????????????????????? | | ?????????????????????????????????????????????????? | | ????????????????????????????????????####?????????? | | ???????????????????????????????????## ##?##?????? | | ?????????????????????????????????### ## ##????? | | ????????????????????????????###### #????? | | ???????????????????########## ## #????? | | ???????????????????# k =@%*! #?????? | | ???????????????????# ####### g ###?????? | | ??????????s?s?s????????????# ##???????? | | ???????????????????????????## ## ##?????### | | ????????????????????????????####### *####### | | ??????????????????????????????????## !% | | ???????????????????????????????????## | | ????????????????????????????????????## ### | | ?????????????????????????????????????#g ##?## | | ????????????????????????????????????# #???##### | | ???????????????????????????????????# #???????## | | ??????????????????????????????????# #????????# | | ??????????????????????????????????# #????????? | | ??????????????????????????????????## #????????? | | ???????????????????????????????????## #????????? | | ????????????????????????????????????## ????####?? | | ?????????????????????????????????????# ???## ##? | | ?????????????????????????????????????# ???# ## | | ?????????????????????????????????????# ???# # | | ?????????????????????????????????????? ?????# | | ?????????????????????????????????????#?????## | | ?????????????????????????????????????# ???## # | | ?????????????????????????????????????# ???# ### | | ?????????????????????????????????????# ??# ##?? | | ?????????????????????????????????????# ### ##?? | +----------------------------------------------------+ Best States ------------- Heat Dissipation 25 Energy Generation 18 Energy Capacity 250 Matter Stores 300 Matter Capacity 300 Sight Range 16 Terrain Scan Density 10 Evasion (%) 50 Recoil Reduction 2 Item Schematics ----------------- None Robot Schematics ------------------ None Fabricated ------------ Nothing Repaired ---------- Nothing Alien Tech Used ----------------- None Achievements -------------- None Challenges ------------ None Game ------ Seed VoltaicSubdwellerDrillbomb Manual? 0 Play Time 00:13:41 Cumulative 46.2 hours Start 2025.08.10 @ 15:30:48 End 2025.08.10 @ 15:45:17 Sessions 1 Manual Loads 0 Difficulty Rogue Special Mode None Game No. 89 Rogue 86 Adventurer 3 Explorer 0 Win Type - Total 0 Types 0/0/0/0/0/0/0/0/0/0 Lore% 29 Gallery% 30 Achievement% 31 Wizard Run 0 Options --------- Layout 1 ASCII 0 Keyboard 0 Movement Mouse Keybinds 0 Fullscreen 1 Font 24/Smallcaps Map View 50x35 Zoom Use 0% Tactical HUD 1 Map Filters NONE Filters NONE Steam 1 RUN: 61a81d36-97ba-460c-b6b7-882388da9de8